Cogmind - Beta 16 @@@ ROGUE MODE // 2025.11.04 @ 20:33:41 Player: Cameron Result: Destroyed by RQ-7RO(R) with Subdweller Beam Cannon Performance ------------- Evolutions (0) 0 Regions Visited (2) 400 Robots Destroyed (9) 45 Value Destroyed (135) 135 Prototype IDs (2) 40 Alien Tech Used (0) 0 Bonus (0) 0 TOTAL SCORE: 620 Bonus ------- None Cogmind --------- Core Integrity 0/250 Matter 197/300 Energy 101/200 System Corruption 0% Temperature Cool (58) Movement Hovering (116) Ox1 Location -10/Subcaves Parts ------- > --- POWER (1) -------- Subdweller Power Source > --- PROPULSION (2) --- Improved Hover Unit Improved Hover Unit > --- UTILITY (2) ------ Scrap Shield > --- WEAPON (2) ------- Battle Rifle Battle Rifle > --- INVENTORY (5) ---- Light Ion Engine Improved Hover Unit Subdweller Optics Peak State ------------ > --- POWER ------------ Subdweller Power Source > --- PROPULSION ------- Improved Hover Unit Improved Hover Unit > --- UTILITY ---------- Scrap Shield > --- WEAPON ----------- Battle Rifle Battle Rifle > --- INVENTORY -------- Light Ion Engine Improved Hover Unit Subdweller Optics [Rating: 14] Favorites ----------- Power Light Ion Engine Engine Light Ion Engine Propulsion Improved Hover Unit Wheel Wheel Hover Unit Improved Hover Unit Flight Unit Flight Unit Utility Small Storage Unit Device Subdweller Optics Storage Small Storage Unit Protection Backup Plating I Weapon Small Laser Energy Gun Small Laser Ballistic Gun Light Assault Rifle Launcher Grenade Launcher Build | -11 -10 -10 ------- Run | Yrd Mat Sub Slots Evolved . | . . . Power . | . . . Propulsion . | . . . Utility . | . . . Weapon . | . . . Parts Attached 25 | 7 9 9 Power 3 | 1 1 1 Engine 3 | 1 1 1 Core . | . . . Reactor . | . . . Propulsion 9 | 2 6 1 Treads . | . . . Leg . | . . . Wheel 2 | 2 . . Hover 3 | . 2 1 Flight 4 | . 4 . Utility 6 | 1 1 4 Device 2 | . . 2 Storage 2 | 1 1 . Processor . | . . . Hackware . | . . . Protection 2 | . . 2 Artifact . | . . . Weapon 7 | 3 1 3 Energy Gun 2 | 1 . 1 Energy Cannon . | . . . Ballistic Gun 4 | 2 . 2 Ballistic Cannon . | . . . Launcher 1 | . 1 . Special Weapon . | . . . Impact Weapon . | . . . Slashing Weapon . | . . . Piercing Weapon . | . . . Special Melee Weapon . | . . . Unidentified Prototypes . | . . . Parts Lost 4 | . 2 2 Power 1 | . 1 . Propulsion 1 | . 1 . Utility 2 | . . 2 Weapon . | . . . Highest Loss Streak 2 | . 2 2 To Critical Strikes . | . . . Average Backups 6 | 2 7 7 Power . | . 1 1 Propulsion 3 | 1 3 4 Utility 1 | . 1 1 Weapon 1 | . 1 1 Tool/Special . | . . . Unused Backups 9 | . 3 6 Power 1 | . . 1 Propulsion 5 | . 2 3 Utility 2 | . 1 1 Weapon 1 | . . 1 Tool/Special . | . . . Average Slot Usage (%) 90 | . 86 100 Engine 13 | . 13 14 Wheel 5 | . 7 . Hover 18 | . 14 28 Flight 3 | . 4 . Device 1 | . . 5 Storage 14 | . 14 14 Protection 7 | . 6 8 Energy Gun 11 | . 11 11 Ballistic Gun 13 | . 12 16 Peak Build Rating 14 | 6 10 14 Average Rating 8 | 4 7 10 On Entrance 5 | . 6 10 Avg Prop Armor Cover (%) . | . . . Naked Turns . | . . . Heaviest Build 16 | 11 16 14 Greatest Support 26 | 26 26 14 Greatest Overweight (x) 1 | . 1 . Average Overweight (x) . | . . . Largest Inventory Capacity 10 | 8 10 8 Average Capacity 8 | 7 8 7 Most Carried 10 | 4 10 8 Average Carried 7 | 2 7 7 Final Capacity 8 | 8 8 5 Final Carried 8 | 4 8 3 Class Distribution -------------------- 100% | Mutant Dominant Class ---------------- Mutant | -10/Materials Mutant | -10/Subcaves Resources | -11 -10 -10 ----------- Run | Yrd Mat Sub Matter Collected 493 | 198 122 173 Remotely . | . . . Salvage Created 200 | . 119 81 Parts 23 | . 16 7 Haulers Intercepted . | . . . Recyclers Shooed . | . . . Parts Field Recycled . | . . . Retrieved Matter . | . . . Parts Self-Destructed . | . . . Prevented . | . . . Parts Restored . | . . . Kills | -11 -10 -10 ------- Run | Yrd Mat Sub Combat Hostiles Destroyed 8 | . 7 1 Guns 5 | . 4 1 AOE 3 | . 3 . Classes Destroyed 5 | . 3 2 Worker 1 | . 1 . Swarmer 6 | . 6 . Grunt 1 | . 1 . Cobbler 1 | . . 1 Subdweller 1 | . . 1 Best Kill Streak 3 | . 3 1 Combat Bots Only 3 | . 3 1 Max Kills in Single Turn 2 | . 2 1 Gunslinging . | . . . Exploded 2 | . 2 . Melee . | . . . Uniques/NPCs Destroyed . | . . . Combat | -11 -10 -10 -------- Run | Yrd Mat Sub Hostile Shots Fired 83 | . 58 25 Missed 27 | . 17 10 Hits 56 | . 41 15 Projectile 56 | . 41 15 AOE 5 | . . 5 Critical Strikes 1 | . . 1 Damage Taken 930 | . 396 534 Core 265 | . 79 186 Absorbed by Shields . | . . . Regen/Repaired (Parts) 46 | . 46 . Core Remaining (%) 100 | 100 . . Volleys Fired 38 | . 18 20 Largest 2 | . 2 2 Hottest 65 | . 60 65 Shots Fired 67 | . 27 40 Gun 65 | . 25 40 Cannon . | . . . Launcher 2 | . 2 . Special . | . . . Kinetic 36 | . 16 20 Thermal 29 | . 9 20 Explosive 2 | . 2 . Electromagnetic . | . . . Robot Hit Streak 15 | . 3 15 Robot Miss Streak 4 | . 4 1 Penetration Max . | . . . Secondary Targets . | . . . Shots Hit Robots 47 | . 12 35 Core Hits 18 | . 9 9 Critical Kills . | . . . Critical Parts Destroyed . | . . . Critical Strikes . | . . . Melee Attacks . | . . . Impact . | . . . Slashing . | . . . Piercing . | . . . Sneak Attacks . | . . . Combat Hostiles . | . . . Follow-up Attacks . | . . . Damage Inflicted 628 | . 284 344 Guns 481 | . 137 344 Cannons . | . . . Explosions 147 | . 147 . Melee . | . . . Ramming . | . . . Kinetic 235 | . 82 153 Thermal 246 | . 55 191 Explosive 147 | . 147 . Electromagnetic . | . . . Impact . | . . . Slashing . | . . . Piercing . | . . . Highest Corruption . | . . . Average Corruption . | . . . Corruption Purged . | . . . Corruption Blocked . | . . . Overload Shots . | . . . Overflow Damage 8 | . 8 . Projectiles . | . . . Explosions 8 | . 8 . Melee . | . . . Knockbacks . | . . . Impact . | . . . Kinetic . | . . . Secondary . | . . . Self-Inflicted Damage 18 | . 18 . Shots 1 | . 1 . Rammed . | . . . Targets Rammed . | . . . Kicked . | . . . Crushed . | . . . Highest Temperature 277 | . 36 277 Average Temperature 91 | . 17 164 Received Heat Transfer 420 | . 66 354 Siege Activations . | . . . Martial Activations . | . . . Shielding Activations . | . . . Robots Disrupted . | . . . Combat Hostiles . | . . . Robots Corrupted . | . . . Combat Hostiles . | . . . Parts Fried . | . . . Impact Corruptions . | . . . Robots Melted . | . . . Combat Hostiles . | . . . Parts Melted 1 | . 1 . Heat Transferred 550 | . 125 425 Parts Sabotaged . | . . . Parts Stolen . | . . . Parts Stripped . | . . . Power Chain Reactions . | . . . Alert | -11 -10 -10 ------- Run | Yrd Mat Sub Maximum Alert Level . | . . . Low Security (%) 100 | 100 100 . Level 1 . | . . . Level 2 . | . . . Level 3 . | . . . Level 4 . | . . . Level 5 . | . . . High Security . | . . . Max Security . | . . . Peak Influence 178 | . 178 . Initial . | . . . Average 85 | . 96 . Influence Increases 303 | . 303 . Destroy 0b10 Robot/C 140 | . 140 . Destroy 0b10 Robot/NC 5 | . 5 . Destroy Leader 20 | . 20 . Successful Hack 35 | . 35 . Destroy Structure 13 | . 13 . Lose Combat Pursuer 90 | . 90 . Influence Decreases 303 | . 192 111 Entered New Map 54 | . . 54 Time Decay 229 | . 172 57 Lost Part 20 | . 20 . Squads Dispatched . | . . . Investigation . | . . . Extermination . | . . . Reinforcement . | . . . Assault . | . . . Garrison . | . . . Intercept . | . . . Searches Triggered . | . . . Construction Impeded . | . . . Haulers Reinforced . | . . . Active Scanning Responses . | . . . Cargo Convoy Interrupts . | . . . Stealth | -11 -10 -10 --------- Run | Yrd Mat Sub Distress Signals 1 | . 1 . Communications Jammed . | . . . Distress Signals . | . . . Times Spotted 23 | . 19 4 Peak Tracking Total 6 | . 6 2 Tactical Retreats 3 | . 3 . Traps | -11 -10 -10 ------- Run | Yrd Mat Sub Traps Triggered . | . . . Indirectly . | . . . Trap Hack Attempts . | . . . Triggered . | . . . Disarmed 6 | . 6 . Reprogrammed . | . . . Reused . | . . . Traps Extracted . | . . . Installed . | . . . Triggered . | . . . Machines | -11 -10 -10 ---------- Run | Yrd Mat Sub Machines Disabled . | . . . Max in Single Turn . | . . . Machines Repaired . | . . . Machines Dismantled . | . . . Machines Sabotaged . | . . . Overloaded Fab Kills . | . . . Hacking | -11 -10 -10 --------- Run | Yrd Mat Sub Machines Accessed 5 | . 5 . Terminals 4 | . 4 . Fabricators . | . . . Repair Stations 1 | . 1 . Recycling Units . | . . . Scanalyzers . | . . . Garrison Access . | . . . Total Hacks 26 | . 26 . Successful 18 | . 18 . Failed 8 | . 8 . Catastrophic . | . . . Database Lockouts . | . . . Manual 3 | . 3 . Terminals 14 | . 14 . Fabricators . | . . . Repair Stations 12 | . 12 . Recycling Units . | . . . Scanalyzers . | . . . Garrison Access . | . . . Terminal Hacks 8 | . 8 . Prototype ID Bank 1 | . 1 . Branch Access Points 1 | . 1 . Terminal Index 1 | . 1 . Locate Traps 1 | . 1 . Disarm Traps 2 | . 2 . Registered Components 1 | . 1 . Zone Layout 1 | . 1 . Fabricator Hacks . | . . . Repair Station Hacks 10 | . 10 . Scan Component 5 | . 5 . Repair 4 | . 4 . Refit 1 | . 1 . Recycling Unit Hacks . | . . . Scanalyzer . | . . . Garrison Access Hacks . | . . . Unauthorized Hacks . | . . . Terminals . | . . . Fabricators . | . . . Repair Stations . | . . . Recycling Units . | . . . Scanalyzers . | . . . Garrison Access . | . . . Data Cores Recovered . | . . . Used . | . . . Hacking Detections 5 | . 5 . Full Trace Events 1 | . 1 . Feedback Events . | . . . Feedback Blocked . | . . . Robot Schematics Acquired . | . . . Robots Built . | . . . Authchips . | . . . Time . | . . . Total Robot Build Rating . | . . . Part Schematics Acquired . | . . . Parts Built . | . . . Authchips . | . . . Time . | . . . Total Part Build Rating . | . . . Part Studies Acquired . | . . . Parts Repaired 4 | . 4 . Time 120 | . 120 . Parts Recycled . | . . . Recycled Matter . | . . . Retrieved Matter . | . . . Retrieved Components . | . . . Parts Scanalyzed . | . . . Part Schematics Acquired . | . . . Parts Damaged . | . . . Bothacking | -11 -10 -10 ------------ Run | Yrd Mat Sub Used RIF Installer . | . . . Robots Hacked . | . . . Non-combat . | . . . Combat . | . . . Robot Hacks Applied . | . . . Relay Couplers Released . | . . . Fabnet Peak Effective % . | . . . Robots Rewired . | . . . Allies Hacked . | . . . Hacks Repelled . | . . . Allies | -11 -10 -10 -------- Run | Yrd Mat Sub Total Allies . | . . . Largest Group . | . . . Highest-Rated Group . | . . . Highest-Rated Ally . | . . . Total Orders . | . . . Ally Attacks . | . . . Total Damage . | . . . Kills . | . . . Allies Corrupted . | . . . Allies Melted . | . . . Intel | -11 -10 -10 ------- Run | Yrd Mat Sub Active Infowar (turns) 62 | . . 62 Optics 61 | . . 61 ECM 1 | . . 1 Robot Analysis Total . | . . . Derelict Logs Recovered . | . . . Drone Launches . | . . . Drone Recoveries . | . . . Exploration | -11 -10 -10 ------------- Run | Yrd Mat Sub Turns Passed 637 | 56 416 165 Spaces Moved 522 | 50 335 137 Core 2 | 2 . . Treads . | . . . Legs . | . . . Wheels 127 | 48 79 . Hover 296 | . 159 137 Flight 97 | . 97 . Fastest Speed 37 | 50 37 56 Average Speed 60 | 83 59 56 Slowest Speed 120 | 90 120 56 Overloaded Moves . | . . . Propulsion Burnouts . | . . . Robots Hopped 1 | . 1 . Potential Cave-ins . | . . . Cave-ins Triggered . | . . . Exploration Rate (%) 21 | 3 53 7 Regions Visited 2 Branch Regions 1 Pre-discovered Areas . | . . . Known Exits Taken . | . . . Unknown Exits Taken 2 | 1 1 . Scrap Searched . | . . . Spaces Dug . | . . . Terrain Destroyed 13 | . 13 . Melee . | . . . Projectile . | . . . AOE 13 | . 13 . Terrain Rammed . | . . . Walls Destroyed . | . . . Machines Disabled . | . . . Actions | -11 -10 -10 --------- Run | Yrd Mat Sub Total 780 | 60 527 193 Wait 136 | . 128 8 Move 518 | 49 332 137 Hop 1 | . 1 . Pick Up 28 | 4 16 8 Fast Attach 10 | 6 4 . Attach 7 | . 5 2 Detach 5 | . 5 . Swap 16 | 1 8 7 Drop 21 | . 10 11 Fire 38 | . 18 20 Melee . | . . . Ram . | . . . Kick . | . . . Crush . | . . . Escape Stasis . | . . . Rewire . | . . . Trap . | . . . Miscellaneous . | . . . Route ------- -11/Scrapyard -10/Materials (discovered 3 exits: [*Mat] / *Min / [*Sub]) -10/Subcaves History --------- Turn | Location | Event 26 | -11/Scrapyard | Discovered new exit (range 15) 57 | -11/Scrapyard | Entered Materials 174 | -10/Materials | Discovered new exit (range 16) 177 | -10/Materials | Identified exit to Mines 227 | -10/Materials | Discovered new exit (range 10) 305 | -10/Materials | Repaired Imp. Hover Unit 326 | -10/Materials | Build established: Mutant 333 | -10/Materials | Repaired Flight Unit 360 | -10/Materials | Repaired Flight Unit 397 | -10/Materials | Repaired Broken Lgt. Ion Engine 469 | -10/Materials | Discovered new exit (range 8) 473 | -10/Materials | Entered Subcaves 526 | -10/Subcaves | Core integrity fell below 50% 630 | -10/Subcaves | Ambushed by Subdweller buried in earth 634 | -10/Subcaves | Core integrity fell below 20% 638 | -10/Subcaves | Destroyed by RQ-7RO(R) with Subdweller Beam Cannon Last Messages --------------- 00575_ Subatomizers dissect the Backup Plating I. 00583_ Acquired 10 matter. 00588_ Acquired 8 matter. 00595_ PI-SLC(O) puts together Sub. Laser. 00599_ PI-SLC(O) cries out in pain. 00599_ PI-SLC(O) destroyed. 00602_ Acquired 35 matter. 00603_ Dropped Sml. Laser. 00610_ Acquired 12 matter. 00611_ Acquired 6 matter. 00615_ Dropped ECM Suite. 00616_ Dropped Grenade Launcher. 00616_ Acquired Scrap Shield. [Achievement: Do Not Disturb] 00630_ Critical hit (Meltdown: +300). 00631_ 29-YPH(R): "LEAVESUB!" 00631_ RQ-7RO(R): "SLEEPOVER!" 00632_ Sub. Optics destroyed. 00636_ Sml. Storage Unit destroyed. Map ----- +----------------------------------------------------+ | ?????????????????????????????????????????????????? | | ?????????????????????????????????????????????????? | | ?????????????????????????????????????????????????? | | ?????????????????????????????????????????????????? | | ?????????????????????????????????????????????????? | | ?????????????????????????????????????????????????? | | ??????????????####???????###?????????????????????? | | ?????????#???## ######### ##?######?????????????? | | ???????##"???# ## # #?# ##????????????? | | ??????##" ???#% % ### #????????????? | | ?????## ###?? ## ## #????????????? | | ?????# ##?# #?## * ==## #????????????? | | ?????# "## #??# &![& #?????????????? | | ?????# " ##### [ ! ! ##?????????????? | | ?????# ""= ## # =#&## #??????????????? | | ?????# " ##### #??????????????? | | ?????## # "[ #?## ##??????????????? | | ??????#" ##### # #### ##???????????????? | | ??????##" ????####R ;;;# #????????????????? | | ?????## ""#######; ##???????????????? | | ????## """## ;; ###?????????????? | | ????# !&;;;;R #?????????????? | | ????#& ] # #?????????????? | | ????#" ; ; ;######?????????????? | | ????# " " ;;; #??????????????????? | | ????##### #; @= #??????????????????? | | ????????## ; #??????????????????? | | ?????????## ;; #??????????????????? | | ??????????# ## ;; #??????????????????? | | ?????????# ### ## ;#??????????????????? | | ???????# ?# ###; #??????????????????? | | ??????# ### ####### ?????????????????? | | ??????# #?# #??????## ???????????????? | | ??????##### ###?## ##???????? %# ??????????????? | | ??????????###????# ##??????????###???????????????? | | ?????????????????###?????????????????????????????? | | ?????????????????????????????????????????????????? | | ?????????????????????????????????????????????????? | | ?????????????????????????????????????????????????? | | ?????????????????????????????????????????????????? | | ?????????????????????????????????????????????????? | | ?????????????????????????????????????????????????? | | ?????????????????????????????????????????????????? | | ?????????????????????????????????????????????????? | | ?????????????????????????????????????????????????? | | ?????????????????????????????????????????????????? | | ?????????????????????????????????????????????????? | | ?????????????????????????????????????????????????? | | ?????????????????????????????????????????????????? | | ?????????????????????????????????????????????????? | +----------------------------------------------------+ Best States ------------- Heat Dissipation 25 Energy Generation 10 Energy Capacity 125 Matter Stores 300 Matter Capacity 300 Sight Range 21 Terrain Scan Density 10 Armor Coverage 80 Evasion (%) 62 Item Schematics ----------------- None Robot Schematics ------------------ None Fabricated ------------ Nothing Repaired ---------- Imp. Hover Unit | 68% | -10/Materials Flight Unit | 50% | -10/Materials Flight Unit | 55% | -10/Materials Lgt. Ion Engine | 60% | -10/Materials | Broken Studied --------- None Alien Tech Used ----------------- None Achievements -------------- Do Not Disturb Challenges ------------ None Game ------ Seed FlyingPartitionMegatreads Manual? 0 Play Time 00:12:50 Cumulative 52.6 hours Start 2025.11.04 @ 20:21:20 End 2025.11.04 @ 20:33:41 Sessions 1 Manual Loads 0 Difficulty Rogue Special Mode None Game No. 52 Rogue 52 Adventurer 0 Explorer 0 Win Type - Total 1 Types 1/0/0/0/0/0/0/0/0/0 Lore% 29 Gallery% 36 Achievement% 28 Wizard Run 0 Options --------- Layout 1 ASCII 0 Keyboard 0 Movement Numpad Keybinds 0 Fullscreen 2 Font 32/SmallcapsGlow Map View 50x35 Zoom Use 0% Tactical HUD 1 Map Filters NONE Filters NONE Steam 1 RUN: e51c8627-d6ca-4b2c-852e-3d275aef4ba3